[Event "Marshall CC U2400 April 2024"]
[Site "New York"]
[Date "2024.04.20"]
[Round "1.1"]
[White "Jiang, Jason"]
[Black "Otero, Joseph"]
[Result "1-0"]
[ECO "A31"]
[WhiteElo "2005"]
[BlackElo "1944"]
[Annotator "TA"]
[PlyCount "141"]
[EventDate "2024.04.20"]
[EventType "swiss"]
[EventCountry "USA"]
[SourceTitle "playchess.com"]
[Source "ChessBase"]
[SourceQuality "1"]
[TimeControl "5400+30"]

{[%evp 21,141,39,47,37,22,7,14,8,11,0,58,33,47,43,49,49,48,37,69,-85,56,0,0,0,0,0,0,0,0,0,0,13,133,125,270,249,375,360,387,352,321,208,282,280,297,289,314,228,326,325,303,266,329,81,74,74,74,74,74,0,0,0,71,71,71,54,54,54,54,54,241,241,230,238,239,239,234,0,51,0,229,94,299,266,264,181,171,185,185,23,26,23,23,24,28,18,264,254,830,819,930,1072,1502,1535,29959,4458,29969,29960,29978,29979,29972,29972,29971,29972,29981,29982,29970,2497,29991,29992,29998,29999]} 1. c4 {[%emt 0:00:10]} Nf6 {[%emt 0:00:10]} 2. Nc3 {[%emt 0:00:09]} c5 {[%emt 0:00:21]} 3. Nf3 {[%emt 0:00:44]} Nc6 {[%emt 0:00:22]} 4. g3 {[%emt 0:00:28]} d6 {[%emt 0:00:25]} 5. Bg2 {[%emt 0:01:29]} g6 {[%emt 0:01:31]} 6. O-O {[%emt 0:01:34]} Bg7 {[%emt 0:00:09]} 7. d4 {[%emt 0:01:09]} cxd4 {[%emt 0:01:02]} 8. Nxd4 {[%emt 0:00:13]} Bd7 {[%emt 0:00:38]} 9. e3 {[%emt 0:04:10]} O-O {[%emt 0:00:21]} 10. b3 {[%emt 0:01:12]} Qc8 {[%emt 0:02:11] 10...Qa5 is setting a new trend.} 11. Bb2 {[%emt 0:02:35]} Bh3 {[%emt 0:00:25]} 12. Nxc6 {[%emt 0:02:30] A31: Symmetrical English: 2 Nf3 Nf6 3 d4.} bxc6 {[%emt 0:00:25]} 13. Rc1 $146 {[%emt 0:03:20]} ({Predecessor:} 13. Qf3 Bxg2 14. Kxg2 Nd7 15. Rac1 Qb7 16. Qe2 Nc5 17. h4 a5 18. Ba3 Nd7 19. c5 d5 20. Nxd5 cxd5 {0-1 Leskiewicz,I (2177)-Bogdanov,E (2394) Krakow op-A 34th 2023 (1)}) 13... Rd8 {[%emt 0:04:08]} 14. Qf3 {[%emt 0:04:04]} Bxg2 {[%emt 0:01:23]} 15. Kxg2 {[%emt 0:00:43]} e5 {[%emt 0:02:33]} (15... Nd7 $11) 16. e4 {[%emt 0:03:24]} Qe6 {[%emt 0:01:54]} 17. Rfd1 {[%emt 0:01:50]} h5 {[%emt 0:04:38]} 18. h4 {[%emt 0:03:02]} Rd7 {[%emt 0:03:08]} 19. Rd3 {[%emt 0:04:23]} Ng4 {[%emt 0:00:42] [#]} 20. c5 $2 {[%emt 0:03:33]} (20. Rcd1 $1 $14 {keeps the upper hand.}) 20... Rf8 {[%emt 0:01:35]} (20... d5 $1 $17 {Hoping for ...f5.} 21. Qe2 (21. exd5 $2 cxd5 22. c6 e4 $19) 21... Rad8) 21. Rcd1 {[%emt 0:06:43]} (21. Rxd6 {simplifies} Rxd6 22. cxd6 Qxd6 23. Qe2) 21... d5 $1 {[%emt 0:01:58]} (21... Rfd8 $6 22. cxd6 Bf8 23. Na4 Rxd6 24. Bc1 $16) 22. exd5 {[%emt 0:02:42]} cxd5 {[%emt 0:02:01]} 23. Rxd5 {[%emt 0:01:13]} (23. Nxd5 $2 {loses.} e4 24. Qf4 exd3 $19) 23... e4 $1 {[%emt 0:00:38]} 24. Qe2 {[%emt 0:02:07]} Rxd5 $1 {[%emt 0:00:53]} 25. Nxd5 {[%emt 0:00:42]} Bxb2 $1 {[%emt 0:16:30]} 26. Qxb2 {[%emt 0:00:15]} Re8 {[%emt 0:00:06]} (26... e3 $11 27. Nxe3 Qe4+ 28. Kg1 Nxe3 29. fxe3 Qf3) 27. Qe2 $1 $16 {[%emt 0:08:51]} Qc6 {[%emt 0:07:16] Dodges Nc7} (27... e3 $16 {was worth a try.} 28. f3 Nf2) 28. b4 $1 $18 {[%emt 0:04:59]} Re5 {[%emt 0:06:35]} (28... a6 {was necessary.} 29. Ne3 Kf8) 29. Ne3 $18 {[%emt 0:03:28]} Re6 {[%emt 0:03:51]} 30. Nxg4 {[%emt 0:08:09]} hxg4 {[%emt 0:01:24]} 31. Qxg4 {[%emt 0:04:40] Strongly threatening Rd8+.} e3+ {[%emt 0:06:15]} 32. Qf3 {[%emt 0:00:37]} e2 {[%emt 0:00:09]} 33. Re1 $1 {[%emt 0:00:49]} Qa6 {[%emt 0:00:06]} 34. c6 {[%emt 0:02:48]} Qc4 {[%emt 0:04:07]} (34... Rxc6 {was called for.} 35. Rxe2 Rc8) 35. c7 $18 {[%emt 0:04:52]} Kg7 {[%emt 0:02:40]} 36. a3 {[%emt 0:05:20]} a6 {[%emt 0:00:12] [#]} 37. Rxe2 $2 {[%emt 0:01:22]} (37. Qb7 $3 $18 {[%mdl 512] and White stays clearly on top.} Rc6 38. Rxe2 Rxc7 39. Qe4 Qxe4+ 40. Rxe4) 37... Rxe2 $16 {[%emt 0:00:50]} 38. Qxe2 {[%emt 0:01:26]} Qxe2 {[%emt 0:00:28]} 39. c8=Q {[%emt 0:00:06] Inhibits Qc2.} (39. c8=R $2 {too greedy.} Qb2 40. Rd8 Qxa3 $19) 39... Qe4+ {[%emt 0:00:26]} 40. Kg1 {[%emt 0:00:35]} Qe1+ {[%emt 0:00:26]} 41. Kg2 {[%emt 0:00:10]} Qe4+ {[%emt 0:00:15]} 42. Kh2 {[%emt 0:00:10]} Qf3 {[%emt 0:00:23][%csl LRa3,LRf2]} 43. Qxa6 {[%emt 0:01:23]} Qxf2+ {[%emt 0:00:12]} 44. Kh3 {[%emt 0:00:08]} Qf3 {[%emt 0:01:45] Repels Qd3. ( -> ...Qh1+)} 45. Qc4 {[%emt 0:01:52]} Qh1+ $2 {[%emt 0:00:57]} (45... Qxa3 $14 46. Qd4+ Kg8) 46. Kg4 $18 {[%emt 0:00:02]} Qd1+ {[%emt 0:02:04]} 47. Kf4 $1 {[%emt 0:00:49]} Qd6+ {[%emt 0:04:28]} 48. Kf3 {[%emt 0:00:39]} Qd1+ {[%emt 0:00:30]} 49. Kf4 $2 {[%emt 0:01:33]} ({Better is} 49. Ke4 $18 Qg4+ 50. Kd5 Qe6+ 51. Kd4 Qg4+ 52. Kc3 Qxg3+ 53. Kb2) 49... Qd6+ $1 $14 {[%emt 0:00:24]} 50. Kf3 $2 {[%emt 0:00:41]} (50. Ke4 $14 Qxg3 51. Kd5) 50... Qd1+ $18 {[%emt 0:00:14]} 51. Ke3 {[%emt 0:00:06]} (51. Ke4 $18 {is more deadly. White threatens Qd4+ and mate.} Qg4+ 52. Kd5 Qd7+ 53. Kc5 Qa7+ 54. Kc6 Qa4+ 55. Kb6 Qxa3 56. Qd4+ Kg8 57. g4) 51... Qg1+ $2 {[%emt 0:02:09]} (51... Qe1+ $16 52. Kf3 Qd1+) 52. Kd2 $1 $18 {[%emt 0:00:06] Black must now prevent Kc2.} ({Weaker is} 52. Kf3 Qd1+ $16) 52... Qf2+ {[%emt 0:02:12]} 53. Kc3 {[%emt 0:02:38] White wants to mate with Qd4+.} Qxg3+ {[%emt 0:01:39]} 54. Qd3 {[%emt 0:01:00]} Qe1+ {[%emt 0:00:50] [#]} 55. Kc4 $2 {[%emt 0:00:18]} (55. Kb3 $1 $18 {Threatens to win with Qc3+.} Qe6+ 56. Kb2) 55... Qe6+ $11 {[%emt 0:01:12]} 56. Qd5 {[%emt 0:01:00]} Qe2+ $1 {[%emt 0:02:18]} 57. Kc5 {[%emt 0:00:18]} Qe7+ {[%emt 0:02:50]} 58. Kb5 {[%emt 0:01:19]} Qxh4 $2 {[%emt 0:01:37] [#]} (58... f5 $11) 59. a4 $1 $18 {[%emt 0:00:21] aiming for a5.} Qf4 $2 {[%emt 0:02:19]} (59... Qe7 60. a5 Qe8+ 61. Kc4 Qa4) 60. a5 $18 {[%emt 0:00:19]} Qb8+ {[%emt 0:01:42]} 61. Ka4 {[%emt 0:00:36]} Qe8+ {[%emt 0:00:36]} 62. b5 {[%emt 0:00:04]} Qe3 {[%emt 0:01:09]} 63. b6 {[%emt 0:01:06] Intending b7 and mate.} Qf4+ {[%emt 0:00:43]} 64. Kb5 {[%emt 0:00:02]} Qf1+ {[%emt 0:00:16]} 65. Kc6 {[%emt 0:01:19]} Qf6+ {[%emt 0:00:49]} 66. Kb7 {[%emt 0:00:19]} g5 {[%emt 0:01:17]} 67. Ka7 {[%emt 0:00:44]} g4 {[%emt 0:00:42]} 68. b7 {[%emt 0:00:18]} Qf2+ {[%emt 0:00:51]} 69. Ka8 {[%emt 0:00:24]} g3 {[%emt 0:00:27]} 70. b8=Q {[%emt 0:00:12]} g2 {[%emt 0:00:20]} 71. Qg5+ {[%emt 0:00:09]} 1-0

[Event "Marshall CC U2400 April 2024"]
[Site "New York"]
[Date "2024.04.20"]
[Round "1.2"]
[White "Paruchuri, Naveen"]
[Black "Nasta, Kiren Vivek"]
[Result "1/2-1/2"]
[ECO "D79"]
[WhiteElo "1866"]
[BlackElo "2057"]
[Annotator "TA"]
[PlyCount "45"]
[EventDate "2024.04.20"]
[EventType "swiss"]
[EventCountry "USA"]
[SourceTitle "playchess.com"]
[Source "ChessBase"]
[SourceQuality "1"]
[TimeControl "5400+30"]

{[%evp 19,45,-19,-8,-7,0,0,0,-29,-37,-51,-46,-81,-66,-102,62,59,157,5,0,2,0,5,138,141,181,166,331,331]} 1. d4 {[%emt 0:00:11]} Nf6 {[%emt 0:00:03]} 2. c4 {[%emt 0:00:10]} g6 {[%emt 0:00:04]} 3. Nf3 {[%emt 0:00:15]} Bg7 {[%emt 0:00:03]} 4. g3 {[%emt 0:00:57]} O-O {[%emt 0:00:36]} 5. Bg2 {[%emt 0:00:14]} c6 {[%emt 0:00:10][%cal Bc7c6,Bc6d5,Bd5e4][%mdl 32]} 6. Nc3 {[%emt 0:01:23]} d5 {[%emt 0:00:10]} 7. cxd5 {[%emt 0:00:35]} cxd5 {[%emt 0:00:05]} 8. O-O {[%emt 0:00:42]} Ne4 {[%emt 0:00:05]} 9. Qb3 {[%emt 0:17:45]} Nc6 {[%emt 0:00:56]} 10. Rd1 {[%emt 0:03:00]} Na5 {[%emt 0:06:28]} 11. Qb4 {[%emt 0:08:21]} Bf5 {[%emt 0:03:04]} 12. Nxe4 {[%emt 0:04:30]} dxe4 {[%emt 0:02:12]} 13. Ng5 {[%emt 0:03:23] The position is equal.} Nc6 {[%emt 0:02:40]} 14. Qxb7 {[%emt 0:01:50]} Qd5 {[%emt 0:02:54] ...h6 would now be deadly.} 15. Bf4 {[%emt 0:03:40]} h6 {[%emt 0:01:51][%mdl 1024] Black has strong compensation.} (15... Bxd4 $2 16. Rxd4 Qxd4 17. Qxc6 $18) 16. Nh3 {[%emt 0:04:51]} g5 $2 {[%emt 0:06:08]} (16... Bxd4 $2 17. e3 (17. Bxh6 Rab8 $11) (17. Rxd4 Qxd4 18. Qxc6 Qxb2 $14) 17... e5 18. Bxh6 $18 (18. exd4 Rab8 $11)) (16... Rad8 $17 {[%cal Of5c8] aiming for ...Bc8!} 17. Be3 e5 (17... Bxd4 18. Rac1 $16) (17... Nxd4 18. Qxd5 Rxd5 19. Rd2 $19)) 17. Rac1 $1 $14 {[%emt 0:06:40] Bc7 is the strong threat.} Rac8 {[%emt 0:18:44] [#]} (17... Rad8 $1 $14) 18. Rc5 $2 {[%emt 0:03:36]} (18. Bc7 $1 $16) 18... Qd7 $11 {[%emt 0:00:15]} 19. Qxd7 {[%emt 0:00:23]} Bxd7 {[%emt 0:00:02]} 20. Be3 {[%emt 0:01:09]} (20. Bxe4 $2 Nxd4 (20... Bxh3 $2 21. Bxc6 gxf4 22. gxf4 $19) (20... gxf4 $2 21. Nxf4 Nxd4 22. Ra5 $19) 21. Rxc8 Bxc8 $19 (21... Rxc8 $2 22. Nxg5 hxg5 23. Bxg5 $19)) 20... Nxd4 {[%emt 0:09:55]} 21. Bxd4 $16 {[%emt 0:16:21] And now b4 would win.} Bxd4 {[%emt 0:44:35] [#]} 22. Rd5 (22. Rxd4 Rxc5 23. Rxd7 Rc1+ 24. Bf1 Rfc8 $17) (22. Rxc8 Rxc8 23. Nxg5 (23. Rxd4 Rc1+ 24. Bf1 Bxh3 25. Rd8+ Kg7) 23... hxg5 $11) 22... Bxh3 (22... Bc6 {keeps fighting.} 23. R5xd4 g4 24. Bxe4 (24. Nf4 e5 $18) 24... e5) 23. Bxh3 {[%mdl 32768] Weighted Error Value: White=0.30/Black=0.67.  Mistake:       	White=1     	Black=4      Inaccurate:     	White=3     	---        OK:         	White=4     	Black=2      Best:        	---       	Black=1      Strong:       	White=1     	---       . An unexpected result.} (23. R1xd4 Be6 24. Bxe4 Bxd5 25. Rxd5 Rc1+ 26. Kg2 Re1 $15) 1/2-1/2

[Event "Marshall CC U2400 April 2024"]
[Site "New York"]
[Date "2024.04.20"]
[Round "1.3"]
[White "Hoffman, Luc"]
[Black "Solomon, William C."]
[Result "1-0"]
[ECO "A46"]
[WhiteElo "2006"]
[BlackElo "1402"]
[Annotator "TA"]
[PlyCount "109"]
[EventDate "2024.04.20"]
[EventType "swiss"]
[EventCountry "USA"]
[SourceTitle "playchess.com"]
[Source "ChessBase"]
[SourceQuality "1"]
[TimeControl "5400+30"]

{[%evp 9,109,22,22,14,38,24,24,27,18,21,27,19,31,27,30,25,25,23,30,11,40,35,39,13,31,3,62,45,68,50,63,68,68,35,98,100,103,100,127,129,129,125,156,158,146,140,179,180,355,338,547,547,739,735,931,779,814,787,766,544,520,517,534,531,635,653,656,654,880,867,797,760,2898,1813,4786,4030,29977,29978,29971,7435,29980,29981,29981,29979,29978,29977,29985,29982,29982,29982,29982,29983,29983,29984,29984,29985,29985,29986,29986,29987,29989,29987]} 1. d4 {[%emt 0:00:04]} d6 {[%emt 0:01:24]} 2. Nf3 {[%emt 0:01:19]} Nf6 {[%emt 0:00:16]} 3. b3 {[%emt 0:02:20]} c6 {[%emt 0:00:48]} 4. Bb2 {[%emt 0:04:07]} g6 {[%emt 0:01:18]} 5. c4 {[%emt 0:02:29]} Bg7 {[%emt 0:00:59]} 6. Nc3 {[%emt 0:03:41]} Qa5 {[%emt 0:00:57]} 7. a3 {[%emt 0:05:13]} Ne4 {[%emt 0:01:15]} 8. b4 {[%emt 0:00:35] White has an edge.} Nxc3 {[%emt 0:00:11]} 9. Bxc3 {[%emt 0:00:10]} Qc7 {[%emt 0:00:14]} 10. e3 {[%emt 0:03:36]} Bg4 {[%emt 0:00:41]} 11. Be2 {[%emt 0:06:00]} O-O {[%emt 0:00:39]} 12. h3 {[%emt 0:00:02]} Bxf3 {[%emt 0:01:00]} 13. Bxf3 {[%emt 0:00:02]} Nd7 {[%emt 0:00:12]} 14. O-O {[%emt 0:00:06]} c5 {[%emt 0:01:16]} 15. Qb3 {[%emt 0:01:56]} cxd4 {[%emt 0:00:39]} 16. exd4 {[%emt 0:01:11]} Rac8 {[%emt 0:00:31]} 17. c5 {[%emt 0:01:20]} e6 {[%emt 0:02:05]} (17... e5 $1 $11 18. dxe5 Bxe5) 18. Rac1 {[%emt 0:04:18]} d5 {[%emt 0:00:44]} 19. b5 {[%emt 0:01:45]} Bh6 {[%emt 0:01:28]} 20. Rc2 $36 {[%emt 0:01:36][%mdl 2048] White has the initiative.} a6 {[%emt 0:02:33]} 21. Rb1 {[%emt 0:03:11]} Ra8 {[%emt 0:02:02] [#]} (21... axb5 $14 22. Qxb5 Rb8) 22. bxa6 $1 $16 {[%emt 0:04:31] White now steadily converts the win.} bxa6 {[%emt 0:00:44]} 23. Qb7 {[%emt 0:00:46]} Rfc8 {[%emt 0:00:44][%cal Bf8c8,Bc8c7,Bc7c6][%mdl 32] Hoping for ...Rab8.} 24. Qxc7 {[%emt 0:00:37]} Rxc7 {[%emt 0:00:14]} 25. Ba5 {[%emt 0:01:02]} Rc6 {[%emt 0:02:00]} 26. Rb7 {[%emt 0:00:32]} Nf6 {[%emt 0:01:03]} 27. Rcb2 {[%emt 0:01:20][%cal Bc2b2,Bb2b3,Bb3b1][%mdl 32] White is much more active.} Bc1 {[%emt 0:13:38][%cal Bh6c1,Bc1f4,Bf4c7,Bc7a5,Ba5c3][%mdl 32]} 28. R2b3 {[%emt 0:03:59]} Ne8 $2 {[%emt 0:00:28]} (28... Rcc8 29. g3 Ne8) 29. Bd1 $18 {[%emt 0:00:52]} Rac8 $2 {[%emt 0:07:01]} (29... Rcc8 30. Rf3 h5) 30. Rb1 {[%emt 0:01:37]} Bf4 {[%emt 0:08:36]} 31. Ba4 {[%emt 0:01:04]} Bc7 {[%emt 0:08:05]} 32. Bxc6 {[%emt 0:01:02]} Bxa5 {[%emt 0:00:12]} 33. Bxe8 {[%emt 0:00:07]} Rxe8 {[%emt 0:00:11][%mdl 4096] Endgame. KRR-KRB} 34. Rb8 {[%emt 0:00:07]} Kf8 {[%emt 0:00:13]} 35. Rxe8+ {[%emt 0:01:07]} Kxe8 {[%emt 0:00:18] KR-KB} 36. Rb7 {[%emt 0:00:02] Dodges Bc7} Bc3 {[%emt 0:00:58]} 37. c6 {[%emt 0:00:24] Intending Rb8+ and mate.} Kd8 {[%emt 0:01:03]} 38. Rxf7 {[%emt 0:00:37]} Bxd4 {[%emt 0:00:06]} 39. Rxh7 {[%emt 0:00:16]} Bb2 {[%emt 0:03:48]} 40. a4 {[%emt 0:00:12]} a5 {[%emt 0:00:14]} 41. g4 {[%emt 0:00:22] h4 is the strong threat.} Kc8 {[%emt 0:01:39]} 42. h4 {[%emt 0:00:11]} e5 {[%emt 0:00:29]} 43. h5 {[%emt 0:00:32]} gxh5 {[%emt 0:00:08]} 44. gxh5 {[%emt 0:00:04]} (44. g5 $142 e4 45. g6 (45. Rxh5 Kc7 $18) 45... Be5 46. g7 (46. Rxh5 Bc3 $18) 46... Bxg7 47. Rxg7 d4 48. Rd7 d3 49. Kh2) 44... d4 {[%emt 0:00:15][%cal Bd5d4,Bd4d3][%mdl 32]} 45. h6 {[%emt 0:01:05] White mates.} d3 {[%emt 0:00:08]} 46. Rd7 {[%emt 0:00:11]} e4 {[%emt 0:02:54] [#]} 47. f3 $1 {[%emt 0:01:05]} exf3 {[%emt 0:01:24]} (47... e3 48. Rxd3) 48. Rxd3 {[%emt 0:00:28]} Kc7 {[%emt 0:00:09]} 49. Rxf3 {[%emt 0:00:46]} Kxc6 {[%emt 0:00:05]} 50. h7 {[%emt 0:00:11]} Bd4+ {[%emt 0:00:32]} 51. Kg2 {[%emt 0:00:13]} Kc5 {[%emt 0:00:06]} 52. Rf8 {[%emt 0:00:05]} Bg7 {[%emt 0:03:34]} 53. h8=Q {[%emt 0:00:13]} Bxh8 {[%emt 0:00:09]} 54. Rxh8 {[%emt 0:00:03]} Kb4 {[%emt 0:00:03]} 55. Rh4+ {[%emt 0:00:06] Weighted Error Value: White=0.14 (very precise) /Black=0.67.  Mistake:       	---       	Black=4      Inaccurate:     	White=3     	Black=2      OK:         	White=11    	Black=8      Best:        	White=1     	---        Strong:       	White=1     	---} 1-0

[Event "Marshall CC U2400 April 2024"]
[Site "New York"]
[Date "2024.04.20"]
[Round "1.4"]
[White "Zhao, Austin"]
[Black "Patay, Travis"]
[Result "1/2-1/2"]
[ECO "B22"]
[WhiteElo "1749"]
[BlackElo "2008"]
[Annotator "TA"]
[PlyCount "35"]
[EventDate "2024.04.20"]
[EventType "swiss"]
[EventCountry "USA"]
[SourceTitle "playchess.com"]
[Source "ChessBase"]
[SourceQuality "1"]
[TimeControl "5400+30"]

{[%evp 22,35,18,0,68,38,53,55,125,129,124,0,42,0,185,0]} 1. e4 {[%emt 0:13:08]} c5 {[%emt 0:00:05]} 2. c3 {[%emt 0:00:08]} Nf6 {[%emt 0:00:21]} 3. e5 {[%emt 0:00:16]} Nd5 {[%emt 0:00:29]} 4. d4 {[%emt 0:00:12]} cxd4 {[%emt 0:00:34]} 5. Nf3 {[%emt 0:00:16]} Nc6 {[%emt 0:05:23]} 6. Bc4 {[%emt 0:00:33]} Nb6 {[%emt 0:01:38]} 7. Bb3 {[%emt 0:00:04]} d5 {[%emt 0:03:25]} 8. exd6 {[%emt 0:00:24]} Qxd6 {[%emt 0:01:28]} 9. O-O {[%emt 0:00:32]} Be6 {[%emt 0:04:58]} 10. Na3 {[%emt 0:00:43]} Bxb3 {[%emt 0:13:03]} 11. Qxb3 {[%emt 0:00:21]} e6 {[%emt 0:14:05]} 12. Nb5 {[%emt 0:00:52]} Qd8 {[%emt 0:05:22]} (12... Qd7 $11 13. Nbxd4 Nxd4 14. Nxd4 Bc5) 13. Nbxd4 {[%emt 0:00:54] White is more active.} (13. Bf4 $5 Rc8 14. Nfxd4 (14. Nbxd4 Nxd4 15. Nxd4 Qd5 $14) 14... Nxd4 15. Nxd4 $14 (15. cxd4 a6 $11)) 13... Nxd4 {[%emt 0:04:15]} 14. Nxd4 {[%emt 0:00:08]} Qd5 {[%emt 0:01:17]} ({Better is} 14... Be7 $14) 15. Nb5 $16 {[%emt 0:04:28]} Qc6 {[%emt 0:03:08] Inhibits Nc7+.} 16. Nd4 {[%emt 0:05:27]} ({White should try} 16. Bf4 $16 {Nc7+ would now be deadly.} Nd5 17. Be5) 16... Qd5 $14 {[%emt 0:06:58]} 17. Nb5 {[%emt 0:01:56]} (17. Qb5+ $14 Qxb5 18. Nxb5) 17... Qc6 $1 $18 {[%emt 0:02:25]} 18. Nd4 $2 {[%emt 0:16:38] Weighted Error Value: White=0.44/Black=0.27 (precise) .  Missed win:     	White=1     	---        Mistake:       	White=2     	Black=1      Inaccurate:     	White=1     	---        OK:         	---       	Black=1      Best:        	White=1     	---        Strong:       	---       	Black=1} (18. Bf4 $18 Nd5 19. Be5) 1/2-1/2

[Event "Marshall CC U2400 April 2024"]
[Site "New York"]
[Date "2024.04.20"]
[Round "1.5"]
[White "Kozower, Ethan"]
[Black "Singh, Ian Avery"]
[Result "1-0"]
[ECO "B40"]
[WhiteElo "1943"]
[BlackElo "1721"]
[Annotator "TA"]
[PlyCount "89"]
[EventDate "2024.04.20"]
[EventType "swiss"]
[EventCountry "USA"]
[SourceTitle "playchess.com"]
[Source "ChessBase"]
[SourceQuality "1"]
[TimeControl "5400+30"]

{[%evp 9,88,41,50,24,89,37,88,92,100,86,117,104,156,115,118,127,133,85,206,143,256,149,129,135,264,251,254,241,262,256,256,131,139,168,165,165,147,83,169,135,209,158,163,150,353,233,237,220,272,261,330,207,346,346,819,800,936,936,922,922,922,779,6049,2225,29981,29982,29978,29979,29995,29996,29996,29991,29995,29990,29995,29996,29997,29998,29998,29999,29999]} 1. e4 {[%emt 0:00:03]} c5 {[%emt 0:00:09]} 2. Nf3 {[%emt 0:00:31]} e6 {[%emt 0:00:08]} 3. g3 {[%emt 0:01:22]} a6 {[%emt 0:00:32]} 4. Bg2 {[%emt 0:00:08]} b5 {[%emt 0:00:24]} 5. O-O {[%emt 0:01:40]} Bb7 {[%emt 0:00:21]} 6. Qe2 {[%emt 0:00:41]} Ne7 {[%emt 0:02:29]} (6... Nc6 $11) 7. c3 {[%emt 0:01:53]} ({White should try} 7. d4 $16) 7... Ng6 {[%emt 0:00:41]} (7... d5 $14) 8. d4 $16 {[%emt 0:03:22] White is better.} cxd4 {[%emt 0:00:55]} 9. cxd4 {[%emt 0:00:00]} Be7 {[%emt 0:00:32]} 10. h4 {[%emt 0:00:50]} d6 {[%emt 0:06:24]} (10... h6 $142) 11. Rd1 {[%emt 0:04:28]} Nd7 {[%emt 0:00:50]} 12. h5 {[%emt 0:13:47]} Ngf8 {[%emt 0:00:23]} 13. e5 {[%emt 0:00:02] White is more active.} ({White should play} 13. Nbd2) 13... h6 {[%emt 0:07:46]} (13... dxe5 $16 {was necessary.} 14. h6 (14. Nxe5 Bxg2 15. Kxg2 Nxe5 $16) (14. dxe5 h6 $16) 14... gxh6) 14. d5 {[%emt 0:06:11] Black must now prevent exd6.} Nb6 {[%emt 0:04:32] [#]} (14... dxe5 $16 15. dxe6 (15. Nxe5 exd5 16. Nc3 Nf6 $16) 15... fxe6 16. Nxe5 Bxg2) 15. dxe6 {[%emt 0:03:44]} (15. exd6 $1 $18 Qxd6 16. Bf4) 15... Nxe6 {[%emt 0:00:29]} 16. exd6 {[%emt 0:04:56]} Bxd6 {[%emt 0:01:19]} (16... Bf6 $16 {might work better.} 17. Ng5 hxg5) 17. Nd4 {[%emt 0:03:12]} Bxg2 {[%emt 0:02:23]} 18. Nxe6 $1 {[%emt 0:16:44]} (18. Kxg2 Qe7 $14) 18... Qe7 {[%emt 0:13:16]} 19. Nxg7+ {[%emt 0:00:17] Excellent horsemanship.} (19. Kxg2 fxe6 20. Re1 O-O $14) 19... Kf8 {[%emt 0:00:13]} 20. Ne6+ {[%emt 0:07:05]} ({Better is} 20. Qg4 $18 Be4 21. Nc3) 20... Qxe6 {[%emt 0:13:39]} 21. Qxe6 {[%emt 0:00:12]} fxe6 {[%emt 0:00:06]} 22. Rxd6 {[%emt 0:05:15]} Nc4 {[%emt 0:00:45]} 23. Rxe6 {[%emt 0:01:35]} (23. Rd4 $142 Bc6 24. b3) 23... Bd5 {[%emt 0:02:22]} (23... Kf7 $16) 24. Rf6+ {[%emt 0:03:52]} ({Worse is} 24. Bxh6+ Kf7 25. Rg6 Ne5 $17) 24... Ke7 {[%emt 0:06:19]} (24... Kg7 $16 25. Rg6+ Kf7) 25. Rxh6 {[%emt 0:01:57]} Rxh6 {[%emt 0:01:29]} 26. Bxh6 {[%emt 0:00:02]} Ne5 $2 {[%emt 0:18:19]} (26... Rh8 $16 {was worth a try.}) 27. Nd2 {[%emt 0:01:02]} Kf6 {[%emt 0:00:51]} 28. Be3 {[%emt 0:06:37] And now Bd4 would win.} Kf5 {[%emt 0:05:41]} 29. Rc1 {[%emt 0:07:09]} Rd8 {[%emt 0:01:27]} 30. b3 {[%emt 0:01:52] Rc5 would now be deadly.} Kg4 {[%emt 0:06:55]} (30... Nf3+ {is a better defense.} 31. Nxf3 Bxf3) 31. h6 $18 {[%emt 0:01:36]} Bb7 $2 {[%emt 0:03:17]} (31... Nf3+ 32. Nxf3 Bxf3) 32. Rc7 {[%emt 0:02:15]} Nf3+ {[%emt 0:00:26]} 33. Nxf3 {[%emt 0:00:47]} Bxf3 {[%emt 0:01:38][%mdl 4096] Endgame. KRB-KRB} 34. Kh2 {[%emt 0:01:41] Hoping for Rg7+.} (34. Rg7+ {gets mated.} Kh3) 34... Rd1 {[%emt 0:00:00]} 35. Rg7+ {[%emt 0:00:07]} Kf5 {[%emt 0:00:17]} 36. Rf7+ {[%emt 0:00:07]} Kg4 {[%emt 0:00:10]} 37. Rf4+ {[%emt 0:00:03] White mates.} Kh5 {[%emt 0:00:12]} 38. Rxf3 {[%emt 0:00:01] KRB-KR} a5 {[%emt 0:00:12][%cal Ba6a5,Ba5a4,Ba4a3][%mdl 32]} 39. h7 {[%emt 0:00:45]} Rd8 {[%emt 0:00:06] [#]} 40. Bd4 $1 {[%emt 0:00:10]} a4 {[%emt 0:00:11]} (40... Kg5 41. Bf6+) 41. Bg7 {[%emt 0:01:03]} a3 {[%emt 0:00:09]} 42. Bf8 {[%emt 0:00:33]} b4 {[%emt 0:00:13]} 43. h8=Q+ {[%emt 0:00:25]} Kg4 {[%emt 0:00:07]} 44. Rf4+ {[%emt 0:00:15]} Kg5 {[%emt 0:00:08]} 45. Qh6# {[%emt 0:02:43] Weighted Error Value: White=0.38/Black=0.72.  Loses game:     	---       	Black=1      Mistake:       	White=5     	Black=10     Inaccurate:     	White=3     	Black=1      OK:         	White=9     	Black=5      Best:        	---       	Black=3      Strong:       	White=1     	---} 1-0